[Event "Charlotte IM-C MLK 2022"]
[Site "Charlotte"]
[Date "2022.01.15"]
[Round "4.5"]
[White "Sethuraman, Sandeep"]
[Black "Ngo, Bach"]
[Result "1/2-1/2"]
[ECO "E16"]
[WhiteElo "2361"]
[BlackElo "2300"]
[Annotator "ChessBase"]
[PlyCount "68"]
[EventDate "2022.01.13"]
[EventType "tourn"]
[EventCountry "USA"]
[SourceTitle "playchess.com"]
[Source "ChessBase"]
[SourceQuality "1"]
[TimeControl "5400+30"]

1. d4 {[%emt 0:00:01]} Nf6 {[%emt 0:00:06]} 2. c4 {[%emt 0:00:03]} e6 {[%emt 0:00:06]} 3. Nf3 {[%emt 0:00:03]} b6 {[%emt 0:00:06]} 4. g3 {[%emt 0:00:04]} Bb7 {[%emt 0:00:06]} 5. Bg2 {[%emt 0:00:03]} Bb4+ {[%emt 0:00:07]} 6. Bd2 {[%emt 0:00:04]} c5 {[%emt 0:00:09]} 7. Bxb4 {[%emt 0:00:28]} cxb4 {[%emt 0:00:09]} 8. Qd3 {[%emt 0:00:05]} O-O {[%emt 0:00:14]} 9. O-O {[%emt 0:00:18]} a5 {[%emt 0:00:16]} 10. Nbd2 {[%emt 0:00:08]} d6 {[%emt 0:00:06]} 11. Rac1 {[%emt 0:00:15]} Re8 {[%emt 0:00:50]} 12. Rfd1 {[%emt 0:00:49]} Qc7 {[%emt 0:00:17]} 13. Ne1 {[%emt 0:08:01]} Bxg2 {[%emt 0:00:55]} 14. Nxg2 {[%emt 0:00:28]} Nc6 {[%emt 0:00:19]} 15. Nf3 {[%emt 0:06:34]} e5 {[%emt 0:04:15]} 16. dxe5 {[%emt 0:05:39]} dxe5 {[%emt 0:00:12]} 17. Qf5 {[%emt 0:06:36]} Rad8 {[%emt 0:14:16]} 18. Ne3 {[%emt 0:04:25]} Nd4 {[%emt 0:01:29]} 19. Nxd4 {[%emt 0:00:22]} exd4 {[%emt 0:00:07]} 20. Nd5 {[%emt 0:01:32]} Nxd5 {[%emt 0:00:48]} 21. cxd5 {[%emt 0:00:03]} Qe5 {[%emt 0:00:11]} 22. Qxe5 {[%emt 0:00:28]} Rxe5 {[%emt 0:02:13]} 23. Rxd4 {[%emt 0:03:27]} Rxe2 {[%emt 0:00:08]} 24. b3 {[%emt 0:01:22]} Rxa2 {[%emt 1:15:05]} 25. Rc6 {[%emt 0:00:14]} Rb2 {[%emt 0:00:00]} 26. Rd3 {[%emt 0:00:26]} b5 {[%emt 0:00:00]} 27. Ra6 {[%emt 0:00:42]} a4 {[%emt 0:00:00]} 28. bxa4 {[%emt 0:00:25]} bxa4 {[%emt 0:00:00]} 29. Rxa4 {[%emt 0:00:05]} g6 {[%emt 0:00:00]} 30. d6 {[%emt 0:01:22]} Rd7 {[%emt 0:00:00]} 31. Ra8+ {[%emt 0:02:14]} Kg7 {[%emt 0:00:00]} 32. Re8 {[%emt 0:00:28]} Ra2 {[%emt 0:00:00]} 33. Re7 {[%emt 0:00:24]} Raa7 {[%emt 0:00:00]} 34. Rxd7 {[%emt 0:00:05]} Rxd7 {[%emt 0:00:00]} 1/2-1/2

[Event "Charlotte IM-C MLK 2022"]
[Site "Charlotte"]
[Date "2022.01.16"]
[Round "6.4"]
[White "Sethuraman, Sandeep"]
[Black "Boehme, Sebastian"]
[Result "1/2-1/2"]
[ECO "D41"]
[WhiteElo "2361"]
[BlackElo "2170"]
[Annotator "ChessBase"]
[PlyCount "39"]
[EventDate "2022.01.13"]
[EventType "tourn"]
[EventCountry "USA"]
[TimeControl "5400+30"]

1. d4 {[%emt 0:00:01]} e6 {[%emt 0:00:18]} 2. c4 {[%emt 0:00:06]} Nf6 {[%emt 0:00:12]} 3. Nc3 {[%emt 0:00:06]} d5 {[%emt 0:00:29]} 4. cxd5 {[%emt 0:00:05]} Nxd5 {[%emt 0:00:06]} 5. e4 {[%emt 0:00:06]} Nxc3 {[%emt 0:00:12]} 6. bxc3 {[%emt 0:00:04]} c5 {[%emt 0:00:26]} 7. Nf3 {[%emt 0:00:05]} cxd4 {[%emt 0:00:03]} 8. cxd4 {[%emt 0:00:05]} Bb4+ {[%emt 0:00:12]} 9. Bd2 {[%emt 0:00:04]} Bxd2+ {[%emt 0:00:06]} 10. Qxd2 {[%emt 0:00:06]} O-O {[%emt 0:00:21]} 11. Bc4 {[%emt 0:00:28]} Nd7 {[%emt 0:00:16]} 12. O-O {[%emt 0:00:14]} b6 {[%emt 0:00:09]} 13. Rfe1 {[%emt 0:06:49]} Bb7 {[%emt 0:00:01]} 14. Rad1 {[%emt 0:07:44]} Rc8 {[%emt 0:00:01]} 15. Bb3 {[%emt 0:00:31]} Re8 {[%emt 0:00:16]} 16. Qd3 {[%emt 0:07:05]} Qc7 {[%emt 0:14:36]} 17. Nd2 {[%emt 0:09:57]} Red8 {[%emt 0:14:38]} 18. Qb1 {[%emt 0:07:37]} Nf6 {[%emt 0:06:02]} 19. Nf1 {[%emt 0:00:59]} b5 {[%emt 0:04:47]} 20. d5 {[%emt 0:17:17]} 1/2-1/2

[Event "Charlotte IM-C MLK 2022"]
[Site "Charlotte"]
[Date "2022.01.17"]
[Round "8.2"]
[White "Vanapalli, Vishnu"]
[Black "Wu, Derek"]
[Result "1/2-1/2"]
[ECO "A14"]
[WhiteElo "2101"]
[BlackElo "2158"]
[Annotator "ChessBase"]
[PlyCount "85"]
[EventDate "2022.01.13"]
[EventType "tourn"]
[EventCountry "USA"]
[TimeControl "5400+30"]

1. c4 {[%emt 0:02:06]} e6 {[%emt 0:00:02]} 2. g3 {[%emt 0:00:31]} d5 {[%emt 0:00:03]} 3. Bg2 {[%emt 0:00:16]} Nf6 {[%emt 0:00:01]} 4. Nf3 {[%emt 0:00:14]} Be7 {[%emt 0:00:01]} 5. O-O {[%emt 0:00:25]} O-O {[%emt 0:00:04]} 6. b3 {[%emt 0:00:14]} c5 {[%emt 0:00:11]} 7. Bb2 {[%emt 0:00:45]} d4 {[%emt 0:00:23]} 8. e3 {[%emt 0:00:16]} Nc6 {[%emt 0:00:02]} 9. exd4 {[%emt 0:00:25]} cxd4 {[%emt 0:00:02]} 10. Re1 {[%emt 0:00:23]} Re8 {[%emt 0:00:14]} 11. d3 {[%emt 0:27:53]} Bc5 {[%emt 0:00:39]} 12. Ba3 {[%emt 0:16:10]} Nd7 {[%emt 0:02:02]} 13. Bxc5 {[%emt 0:16:01]} Nxc5 {[%emt 0:01:04]} 14. Ne5 {[%emt 0:01:45]} Nxe5 {[%emt 0:01:36]} 15. Rxe5 {[%emt 0:00:58]} Qd6 {[%emt 0:00:19]} 16. Re1 {[%emt 0:00:43]} a5 {[%emt 0:02:27]} 17. Na3 {[%emt 0:01:41]} e5 {[%emt 0:01:17]} 18. Nb5 {[%emt 0:02:52]} Qd8 {[%emt 0:00:35]} 19. a3 {[%emt 0:03:27]} Bf5 {[%emt 0:03:17]} 20. Bf1 {[%emt 0:00:30]} Ra6 {[%emt 0:06:59]} 21. Rb1 {[%emt 0:08:28]} e4 {[%emt 0:14:07]} 22. dxe4 {[%emt 0:01:53]} Rxe4 {[%emt 0:01:10]} 23. Rxe4 {[%emt 0:01:39]} Bxe4 {[%emt 0:00:04]} 24. Rb2 {[%emt 0:01:31]} d3 {[%emt 0:02:55]} 25. Nc3 {[%emt 0:05:35]} Bg6 {[%emt 0:04:26]} 26. Nd5 {[%emt 0:01:57]} Qg5 {[%emt 0:07:36]} 27. b4 {[%emt 0:01:23]} axb4 {[%emt 0:00:17]} 28. axb4 {[%emt 0:00:30]} Qe5 {[%emt 0:00:35]} 29. Qd2 {[%emt 0:03:27]} Ne4 {[%emt 0:01:58]} 30. Qxd3 {[%emt 0:00:26]} Nxf2 {[%emt 0:02:26]} 31. Qc3 {[%emt 0:00:32]} Qxc3 {[%emt 0:05:05]} 32. Nxc3 {[%emt 0:00:13]} Ng4 {[%emt 0:00:55]} 33. c5 {[%emt 0:00:48]} Ra3 {[%emt 0:01:21]} 34. Ra2 {[%emt 0:00:08]} Rxa2 {[%emt 0:00:01]} 35. Nxa2 {[%emt 0:00:00]} Be4 {[%emt 0:00:02]} 36. Nc3 {[%emt 0:00:39]} Bf5 {[%emt 0:00:34]} 37. Bg2 {[%emt 0:00:14]} Bc8 {[%emt 0:00:28]} 38. Nd5 {[%emt 0:00:58]} Bd7 {[%emt 0:00:40]} 39. Nb6 {[%emt 0:00:50]} Bc6 {[%emt 0:00:02]} 40. Bxc6 {[%emt 0:00:53]} bxc6 {[%emt 0:00:00]} 41. Nc4 {[%emt 0:00:01]} Kf8 {[%emt 0:03:02]} 42. Kg2 {[%emt 0:00:26]} f6 {[%emt 0:01:34]} 43. Nd6 {[%emt 0:01:03]} 1/2-1/2

[Event "Charlotte IM-C MLK 2022"]
[Site "Charlotte"]
[Date "2022.01.17"]
[Round "8.4"]
[White "Ngo, Bach"]
[Black "Martin Del Campo Cardenas, Roberto Abel"]
[Result "1-0"]
[ECO "A46"]
[WhiteElo "2300"]
[BlackElo "2261"]
[Annotator "ChessBase"]
[PlyCount "55"]
[EventDate "2022.01.13"]
[EventType "tourn"]
[EventCountry "USA"]
[TimeControl "5400+30"]

1. d4 {[%emt 0:00:04]} Nf6 {[%emt 0:01:07]} 2. Nf3 {[%emt 0:00:10]} d6 {[%emt 0:02:01]} 3. Nc3 {[%emt 0:00:13]} Bf5 {[%emt 0:00:46]} 4. Bf4 {[%emt 0:00:16]} c6 {[%emt 0:01:30]} 5. h3 {[%emt 0:01:07]} Qb6 {[%emt 0:08:57]} 6. Rb1 {[%emt 0:01:25]} h6 {[%emt 0:04:35]} 7. e3 {[%emt 0:00:20]} Nbd7 {[%emt 0:01:27]} 8. Bd3 {[%emt 0:01:42]} Bxd3 {[%emt 0:04:14]} 9. cxd3 {[%emt 0:01:09]} g5 {[%emt 0:08:20]} 10. Bg3 {[%emt 0:00:32]} Bg7 {[%emt 0:01:00]} 11. b4 {[%emt 0:04:45]} a5 {[%emt 0:06:58]} 12. b5 {[%emt 0:01:09]} a4 {[%emt 0:01:32]} 13. bxc6 {[%emt 0:04:26]} Qxc6 {[%emt 0:00:05]} 14. Qd2 {[%emt 0:03:03]} h5 {[%emt 0:13:43]} 15. Ke2 {[%emt 0:23:27]} h4 {[%emt 0:05:31]} 16. Bh2 {[%emt 0:00:10]} g4 {[%emt 0:00:25]} 17. hxg4 {[%emt 0:00:17]} Nxg4 {[%emt 0:01:30]} 18. Nb5 {[%emt 0:00:20]} Nxh2 {[%emt 0:03:28]} 19. Nxh2 {[%emt 0:00:11]} Kf8 {[%emt 0:03:45]} 20. Nf3 {[%emt 0:00:54]} d5 {[%emt 0:04:28]} 21. Rhc1 {[%emt 0:03:15]} Qg6 {[%emt 0:01:57]} 22. Nc7 {[%emt 0:00:17]} Rd8 {[%emt 0:01:05]} 23. Nxd5 {[%emt 0:00:36]} Qxg2 {[%emt 0:02:28]} 24. Rxb7 {[%emt 0:02:17]} Nf6 {[%emt 0:02:29]} 25. Nf4 {[%emt 0:01:34]} Qg4 {[%emt 0:00:26]} 26. Qb4 {[%emt 0:00:30]} Ng8 {[%emt 0:01:07]} 27. Rb8 {[%emt 0:01:33]} Qd7 {[%emt 0:00:27]} 28. Qb7 {[%emt 0:48:48]} 1-0